[Event "Live Chess"]
[Site "Chess.com"]
[Date "2023.05.20"]
[Round "-"]
[White "raimundklein"]
[Black "nigelst"]
[Result "1-0"]
[WhiteElo "1691"]
[BlackElo "1819"]
[TimeControl "300"]
[EndTime "15:43:44 PDT"]
[Termination "raimundklein won by resignation"]

1. e4 {[%clk 0:04:59.3]} 1... c6 {[%clk 0:04:59]} 2. Nf3 {[%clk 0:04:56.7]} 2...
d5 {[%clk 0:04:57.6]} 3. exd5 {[%clk 0:04:56.6]} 3... cxd5 {[%clk 0:04:56.7]} 4.
Ne5 {[%clk 0:04:55.9]} 4... Nc6 {[%clk 0:04:54.6]} 5. Bb5 {[%clk 0:04:54.3]}
5... Bd7 {[%clk 0:04:52.8]} 6. Nxd7 {[%clk 0:04:52.8]} 6... Qxd7 {[%clk
0:04:51.9]} 7. d4 {[%clk 0:04:48.5]} 7... e6 {[%clk 0:04:45.6]} 8. O-O {[%clk
0:04:46.7]} 8... Bd6 {[%clk 0:04:44.3]} 9. c3 {[%clk 0:04:44.7]} 9... Nf6 {[%clk
0:04:43.2]} 10. f4 {[%clk 0:04:41.4]} 10... O-O {[%clk 0:04:41.6]} 11. Nd2
{[%clk 0:04:37.8]} 11... a6 {[%clk 0:04:37.7]} 12. Bd3 {[%clk 0:04:36.3]} 12...
b5 {[%clk 0:04:33.6]} 13. Qe2 {[%clk 0:04:34.7]} 13... Na5 {[%clk 0:04:27.8]}
14. Nf3 {[%clk 0:04:30.6]} 14... Nc4 {[%clk 0:04:24.1]} 15. Ne5 {[%clk
0:04:29.3]} 15... Qc7 {[%clk 0:04:18.8]} 16. g4 {[%clk 0:04:24.9]} 16... Nd7
{[%clk 0:04:04.6]} 17. g5 {[%clk 0:04:21.2]} 17... Ncxe5 {[%clk 0:03:37.1]} 18.
fxe5 {[%clk 0:04:21.1]} 18... Be7 {[%clk 0:03:33.9]} 19. Bxh7+ {[%clk
0:03:55.8]} 19... Kxh7 {[%clk 0:03:31.7]} 20. Qh5+ {[%clk 0:03:55.4]} 20... Kg8
{[%clk 0:03:30.6]} 21. Rf3 {[%clk 0:03:54.4]} 21... Nxe5 {[%clk 0:02:34.9]} 22.
Rh3 {[%clk 0:03:48]} 22... Nf3+ {[%clk 0:02:33]} 23. Kh1 {[%clk 0:03:43.7]}
23... f6 {[%clk 0:02:17.3]} 24. g6 {[%clk 0:03:40.9]} 1-0

[Event "Live Chess"]
[Site "Chess.com"]
[Date "2023.05.20"]
[Round "-"]
[White "LiamClery2020"]
[Black "smoggyrabbit"]
[Result "1-0"]
[WhiteElo "2062"]
[BlackElo "1699"]
[TimeControl "300"]
[EndTime "15:43:49 PDT"]
[Termination "LiamClery2020 won by resignation"]

1. e4 {[%clk 0:04:59.2]} 1... e6 {[%clk 0:04:59.2]} 2. d4 {[%clk 0:04:58]} 2...
d5 {[%clk 0:04:58.3]} 3. Nd2 {[%clk 0:04:52.9]} 3... c5 {[%clk 0:04:56.8]} 4. c3
{[%clk 0:04:51.6]} 4... cxd4 {[%clk 0:04:55.3]} 5. cxd4 {[%clk 0:04:50.8]} 5...
dxe4 {[%clk 0:04:54.6]} 6. Nxe4 {[%clk 0:04:50.7]} 6... Nc6 {[%clk 0:04:52.5]}
7. Nf3 {[%clk 0:04:49.5]} 7... Bb4+ {[%clk 0:04:48.5]} 8. Bd2 {[%clk 0:04:48.5]}
8... Bxd2+ {[%clk 0:04:47.6]} 9. Qxd2 {[%clk 0:04:48.4]} 9... Nf6 {[%clk
0:04:46.8]} 10. Nxf6+ {[%clk 0:04:47.7]} 10... Qxf6 {[%clk 0:04:46.7]} 11. Bb5
{[%clk 0:04:46.8]} 11... Bd7 {[%clk 0:04:44.2]} 12. O-O {[%clk 0:04:45.6]} 12...
a6 {[%clk 0:04:39.3]} 13. Bxc6 {[%clk 0:04:43.2]} 13... Bxc6 {[%clk 0:04:39.2]}
14. Ne5 {[%clk 0:04:43.1]} 14... O-O {[%clk 0:04:30.8]} 15. Rac1 {[%clk
0:04:41.3]} 15... Bd5 {[%clk 0:04:21.7]} 16. Nd7 {[%clk 0:04:40.1]} 16... Qg6
{[%clk 0:04:16.8]} 17. f3 {[%clk 0:04:37]} 17... Rfd8 {[%clk 0:04:14.6]} 18. Ne5
{[%clk 0:04:33.2]} 18... Qf5 {[%clk 0:04:02.7]} 19. Rc7 {[%clk 0:04:30.9]} 19...
Rac8 {[%clk 0:03:59.1]} 20. Rxf7 {[%clk 0:04:28.4]} 20... Qc2 {[%clk 0:03:47.8]}
21. Qg5 {[%clk 0:04:23.5]} 21... g6 {[%clk 0:03:41.9]} 22. Qf6 {[%clk
0:04:21.8]} 1-0

[Event "Live Chess"]
[Site "Chess.com"]
[Date "2023.05.20"]
[Round "-"]
[White "parcellforce"]
[Black "LodeshChess"]
[Result "0-1"]
[WhiteElo "1348"]
[BlackElo "1128"]
[TimeControl "300"]
[EndTime "15:44:03 PDT"]
[Termination "LodeshChess won by resignation"]

1. d4 {[%clk 0:04:59.2]} 1... Nf6 {[%clk 0:04:58.2]} 2. c4 {[%clk 0:04:58.8]}
2... e6 {[%clk 0:04:57.5]} 3. Nc3 {[%clk 0:04:58.5]} 3... Bb4 {[%clk 0:04:57]}
4. Nf3 {[%clk 0:04:58.4]} 4... Bxc3+ {[%clk 0:04:56.5]} 5. bxc3 {[%clk
0:04:58.3]} 5... b6 {[%clk 0:04:55.2]} 6. Bg5 {[%clk 0:04:57.5]} 6... Bb7 {[%clk
0:04:51.6]} 7. e3 {[%clk 0:04:56.5]} 7... d6 {[%clk 0:04:50.7]} 8. Bd3 {[%clk
0:04:54.4]} 8... Nbd7 {[%clk 0:04:49.3]} 9. Bc2 {[%clk 0:04:52.4]} 9... h6
{[%clk 0:04:44.8]} 10. Bh4 {[%clk 0:04:51]} 10... d5 {[%clk 0:04:17.6]} 11. c5
{[%clk 0:04:45.1]} 11... bxc5 {[%clk 0:04:15.1]} 12. Ba4 {[%clk 0:04:27.3]}
12... Ba6 {[%clk 0:04:04.8]} 13. Bxd7+ {[%clk 0:04:18.9]} 13... Qxd7 {[%clk
0:03:57.7]} 14. Bxf6 {[%clk 0:04:17.9]} 14... gxf6 {[%clk 0:03:57.4]} 15. Nd2
{[%clk 0:03:55]} 15... Rg8 {[%clk 0:03:55.2]} 16. Qf3 {[%clk 0:03:48.9]} 16...
f5 {[%clk 0:03:46.4]} 17. Nb3 {[%clk 0:03:33.2]} 17... cxd4 {[%clk 0:03:18.4]}
18. Nc5 {[%clk 0:03:22.1]} 18... Qc6 {[%clk 0:03:14.7]} 19. Nxa6 {[%clk
0:03:18.3]} 19... Qxa6 {[%clk 0:03:13.5]} 20. cxd4 {[%clk 0:03:18.2]} 20... Rb8
{[%clk 0:03:10.1]} 21. Qf4 {[%clk 0:02:33.8]} 21... Kd7 {[%clk 0:02:56.3]} 22.
Rc1 {[%clk 0:02:28.7]} 22... Qa5+ {[%clk 0:02:36.2]} 23. Ke2 {[%clk 0:02:21.4]}
23... Rb2+ {[%clk 0:02:34.9]} 24. Kf3 {[%clk 0:02:14.5]} 24... Rxf2+ {[%clk
0:01:58.6]} 25. Kxf2 {[%clk 0:01:56.9]} 25... Qd2+ {[%clk 0:01:58]} 26. Kf1
{[%clk 0:01:41.2]} 26... Qxg2+ {[%clk 0:01:56.9]} 27. Ke1 {[%clk 0:01:39]} 27...
Qxh1+ {[%clk 0:01:56.3]} 28. Kd2 {[%clk 0:01:38.2]} 28... Rg2+ {[%clk
0:01:55.1]} 29. Kd3 {[%clk 0:01:34.2]} 29... Qxc1 {[%clk 0:01:51.2]} 30. e4
{[%clk 0:01:18.1]} 30... Qxf4 {[%clk 0:01:49.7]} 31. e5 {[%clk 0:01:17]} 0-1

[Event "Live Chess"]
[Site "Chess.com"]
[Date "2023.05.20"]
[Round "-"]
[White "KeithArkell"]
[Black "Pablo_dmp"]
[Result "1-0"]
[WhiteElo "2608"]
[BlackElo "1874"]
[TimeControl "300"]
[EndTime "15:44:03 PDT"]
[Termination "KeithArkell won by resignation"]

1. d4 {[%clk 0:04:57.7]} 1... Nf6 {[%clk 0:04:57.8]} 2. Nf3 {[%clk 0:04:56.8]}
2... e6 {[%clk 0:04:54.4]} 3. c4 {[%clk 0:04:55.9]} 3... Bb4+ {[%clk 0:04:52.6]}
4. Bd2 {[%clk 0:04:54.8]} 4... a5 {[%clk 0:04:51.9]} 5. g3 {[%clk 0:04:53.5]}
5... b6 {[%clk 0:04:50.8]} 6. Bg2 {[%clk 0:04:52.6]} 6... Bb7 {[%clk 0:04:49.8]}
7. O-O {[%clk 0:04:51.8]} 7... O-O {[%clk 0:04:47.6]} 8. Ne5 {[%clk 0:04:50.8]}
8... Bxg2 {[%clk 0:04:45.3]} 9. Kxg2 {[%clk 0:04:50.1]} 9... d6 {[%clk
0:04:42.9]} 10. Nd3 {[%clk 0:04:48.7]} 10... Bxd2 {[%clk 0:04:41.4]} 11. Nxd2
{[%clk 0:04:47.7]} 11... Nbd7 {[%clk 0:04:39.3]} 12. Rc1 {[%clk 0:04:42.1]}
12... Re8 {[%clk 0:04:35.2]} 13. e3 {[%clk 0:04:39.3]} 13... Qc8 {[%clk
0:04:31]} 14. b3 {[%clk 0:04:35.6]} 14... Qb7+ {[%clk 0:04:29.8]} 15. Qf3 {[%clk
0:04:34.8]} 15... Qxf3+ {[%clk 0:04:28]} 16. Nxf3 {[%clk 0:04:33]} 16... e5
{[%clk 0:04:24.6]} 17. dxe5 {[%clk 0:04:31]} 17... dxe5 {[%clk 0:04:24.5]} 18.
Nd2 {[%clk 0:04:23.8]} 18... e4 {[%clk 0:04:21.1]} 19. Nf4 {[%clk 0:04:22.3]}
19... Ne5 {[%clk 0:04:16.5]} 20. h4 {[%clk 0:04:19.2]} 20... Nd3 {[%clk
0:04:11.9]} 21. Nxd3 {[%clk 0:04:17.7]} 21... exd3 {[%clk 0:04:11.8]} 22. Rfd1
{[%clk 0:04:14.9]} 22... Rad8 {[%clk 0:04:09.9]} 23. Nb1 {[%clk 0:04:11]} 23...
Ng4 {[%clk 0:04:01.3]} 24. Rd2 {[%clk 0:04:05.8]} 24... Re7 {[%clk 0:03:53.8]}
25. Nc3 {[%clk 0:04:03.7]} 25... c6 {[%clk 0:03:51.1]} 26. Rcd1 {[%clk
0:04:01.8]} 26... Red7 {[%clk 0:03:49.3]} 27. Ne4 {[%clk 0:03:44.2]} 27... f5
{[%clk 0:03:41.6]} 28. Ng5 {[%clk 0:03:39.5]} 28... Rd6 {[%clk 0:03:29.8]} 29.
Nf3 {[%clk 0:03:36.3]} 29... Kf7 {[%clk 0:03:21.6]} 30. Nd4 {[%clk 0:03:34.8]}
30... g6 {[%clk 0:03:08]} 31. Rc1 {[%clk 0:03:31.3]} 31... Kf6 {[%clk
0:03:03.2]} 32. c5 {[%clk 0:03:29.7]} 32... bxc5 {[%clk 0:02:54]} 33. Rxc5
{[%clk 0:03:28.8]} 33... Ne5 {[%clk 0:02:49.7]} 34. f4 {[%clk 0:03:19]} 34...
Ng4 {[%clk 0:02:45.3]} 35. Rxd3 {[%clk 0:03:17.1]} 35... Nxe3+ {[%clk 0:02:38]}
36. Rxe3 {[%clk 0:03:17]} 36... Rxd4 {[%clk 0:02:36.8]} 37. Rxc6+ {[%clk
0:03:16.5]} 37... R8d6 {[%clk 0:02:35.2]} 38. Rxd6+ {[%clk 0:03:13.7]} 38...
Rxd6 {[%clk 0:02:35.1]} 39. Kf2 {[%clk 0:03:11.9]} 39... Rd2+ {[%clk 0:02:26.1]}
40. Re2 {[%clk 0:03:10.7]} 40... Rd4 {[%clk 0:02:15]} 41. Ke3 {[%clk 0:03:08.5]}
41... Re4+ {[%clk 0:02:13.6]} 42. Kd3 {[%clk 0:03:07.3]} 42... Rb4 {[%clk
0:02:11.3]} 43. Kc3 {[%clk 0:03:06.5]} 43... h6 {[%clk 0:02:05.5]} 44. Re5
{[%clk 0:03:05.2]} 44... g5 {[%clk 0:02:03.3]} 45. hxg5+ {[%clk 0:03:04.3]}
45... hxg5 {[%clk 0:02:03.2]} 46. Rxa5 {[%clk 0:02:56.5]} 46... Re4 {[%clk
0:01:56.6]} 47. fxg5+ {[%clk 0:02:50.2]} 47... Kxg5 {[%clk 0:01:56.5]} 48. b4
{[%clk 0:02:33.3]} 48... Re3+ {[%clk 0:01:55.5]} 49. Kd4 {[%clk 0:02:32.5]}
49... Rxg3 {[%clk 0:01:55.4]} 50. b5 {[%clk 0:02:32]} 50... Rg1 {[%clk
0:01:51.5]} 51. Ra3 {[%clk 0:02:28.3]} 51... Rd1+ {[%clk 0:01:47.9]} 52. Ke3
{[%clk 0:02:25.3]} 52... f4+ {[%clk 0:01:46]} 53. Ke2 {[%clk 0:02:23.6]} 53...
Rb1 {[%clk 0:01:41.7]} 54. Rb3 {[%clk 0:02:22.7]} 54... Ra1 {[%clk 0:01:40.9]}
55. Rb2 {[%clk 0:02:20.1]} 55... Rc1 {[%clk 0:01:38.6]} 56. b6 {[%clk
0:02:19.2]} 56... Rc8 {[%clk 0:01:38.1]} 57. b7 {[%clk 0:02:18.4]} 57... Rb8
{[%clk 0:01:37.7]} 58. a4 {[%clk 0:02:17.8]} 58... Kg4 {[%clk 0:01:37]} 59. a5
{[%clk 0:02:15.6]} 59... Kg3 {[%clk 0:01:35.9]} 60. a6 {[%clk 0:02:09.6]} 60...
f3+ {[%clk 0:01:31.7]} 61. Kd3 {[%clk 0:02:07.9]} 61... f2 {[%clk 0:01:24.5]}
62. Rxf2 {[%clk 0:02:06.1]} 62... Kxf2 {[%clk 0:01:23.8]} 63. Kd4 {[%clk
0:02:05.4]} 63... Ke2 {[%clk 0:01:22.1]} 64. Kc5 {[%clk 0:02:04.9]} 64... Kd3
{[%clk 0:01:21.2]} 65. Kb6 {[%clk 0:02:04.4]} 1-0

[Event "Live Chess"]
[Site "Chess.com"]
[Date "2023.05.20"]
[Round "-"]
[White "elvenstar"]
[Black "hturner40"]
[Result "0-1"]
[WhiteElo "1561"]
[BlackElo "1813"]
[TimeControl "300"]
[EndTime "15:44:04 PDT"]
[Termination "hturner40 won by resignation"]

1. e4 {[%clk 0:04:58.1]} 1... Nc6 {[%clk 0:04:58.3]} 2. Nf3 {[%clk 0:04:55.8]}
2... e5 {[%clk 0:04:57.3]} 3. Bc4 {[%clk 0:04:52.3]} 3... Nf6 {[%clk 0:04:54.3]}
4. d3 {[%clk 0:04:43.4]} 4... Be7 {[%clk 0:04:51.3]} 5. Be3 {[%clk 0:04:41.4]}
5... d5 {[%clk 0:04:34]} 6. exd5 {[%clk 0:04:39.2]} 6... Nxd5 {[%clk 0:04:32.8]}
7. Bxd5 {[%clk 0:04:37.4]} 7... Qxd5 {[%clk 0:04:30.9]} 8. O-O {[%clk
0:04:36.2]} 8... O-O {[%clk 0:04:26.3]} 9. Nbd2 {[%clk 0:04:34.8]} 9... Bg4
{[%clk 0:04:17.9]} 10. Qe1 {[%clk 0:04:26.8]} 10... Rae8 {[%clk 0:04:05.6]} 11.
h3 {[%clk 0:04:25.3]} 11... Bh5 {[%clk 0:04:03.6]} 12. Nh2 {[%clk 0:04:22.3]}
12... f5 {[%clk 0:03:57.5]} 13. Nb3 {[%clk 0:03:56.7]} 13... f4 {[%clk
0:03:45.6]} 14. Bd2 {[%clk 0:03:48.5]} 14... f3 {[%clk 0:03:31.4]} 15. g4 {[%clk
0:03:44.8]} 15... Bg6 {[%clk 0:03:27.6]} 16. Qe3 {[%clk 0:03:33.9]} 16... Nd4
{[%clk 0:03:22.4]} 17. Nxd4 {[%clk 0:03:24.7]} 17... exd4 {[%clk 0:03:21]} 18.
Qe1 {[%clk 0:03:11.7]} 18... Bd6 {[%clk 0:03:17.9]} 19. Qd1 {[%clk 0:03:08.9]}
19... Qe5 {[%clk 0:03:12.3]} 0-1

[Event "Live Chess"]
[Site "Chess.com"]
[Date "2023.05.20"]
[Round "-"]
[White "mikkyb4"]
[Black "MarkLim1"]
[Result "0-1"]
[WhiteElo "1001"]
[BlackElo "1657"]
[TimeControl "300"]
[EndTime "15:44:06 PDT"]
[Termination "MarkLim1 won by resignation"]

1. e4 {[%clk 0:04:58.8]} 1... e6 {[%clk 0:04:58.8]} 2. b3 {[%clk 0:04:56.9]}
2... d5 {[%clk 0:04:57.9]} 3. Bb2 {[%clk 0:04:56.1]} 3... dxe4 {[%clk 0:04:57]}
4. Nc3 {[%clk 0:04:54.9]} 4... Nf6 {[%clk 0:04:56.4]} 5. Qe2 {[%clk 0:04:54]}
5... Bd7 {[%clk 0:04:55.5]} 6. Nxe4 {[%clk 0:04:52]} 6... Nxe4 {[%clk
0:04:53.9]} 7. Qxe4 {[%clk 0:04:50.9]} 7... Bc6 {[%clk 0:04:53.8]} 8. Qe2 {[%clk
0:04:47.7]} 8... Nd7 {[%clk 0:04:53.3]} 9. O-O-O {[%clk 0:04:45.7]} 9... Qe7
{[%clk 0:04:47.9]} 10. Nf3 {[%clk 0:04:32.5]} 10... O-O-O {[%clk 0:04:45.9]} 11.
Qe3 {[%clk 0:04:24.7]} 11... Kb8 {[%clk 0:04:43.7]} 12. Bd4 {[%clk 0:04:06.9]}
12... b6 {[%clk 0:04:40.2]} 13. Ba6 {[%clk 0:03:59.1]} 13... Qa3+ {[%clk
0:04:35.5]} 14. Bb2 {[%clk 0:03:57.2]} 14... Qxa6 {[%clk 0:04:34.2]} 15. Nd4
{[%clk 0:03:53]} 15... Bb7 {[%clk 0:04:29]} 16. a4 {[%clk 0:03:35]} 16... Nf6
{[%clk 0:04:23.7]} 17. Nb5 {[%clk 0:03:31.9]} 17... Bc5 {[%clk 0:04:18.1]} 18.
Qe5 {[%clk 0:03:22.3]} 18... Bd6 {[%clk 0:04:13.2]} 19. Nxd6 {[%clk 0:03:15.5]}
19... cxd6 {[%clk 0:04:12.2]} 20. Qg3 {[%clk 0:03:06.1]} 20... Rhg8 {[%clk
0:04:05.7]} 21. f3 {[%clk 0:03:00.4]} 21... b5 {[%clk 0:04:00.5]} 22. Qf4 {[%clk
0:02:49.5]} 22... bxa4 {[%clk 0:03:57.1]} 23. Qxa4 {[%clk 0:02:25.5]} 23... Qxa4
{[%clk 0:03:55.5]} 24. bxa4 {[%clk 0:02:24.2]} 24... Nd5 {[%clk 0:03:51.8]} 25.
Rhe1 {[%clk 0:02:18.3]} 25... Rc8 {[%clk 0:03:50]} 26. Re4 {[%clk 0:02:12.2]}
26... a5 {[%clk 0:03:47.3]} 27. c4 {[%clk 0:02:06.6]} 27... Nb4 {[%clk
0:03:42.5]} 28. Kb1 {[%clk 0:02:00.5]} 28... Bxe4+ {[%clk 0:03:40.2]} 29. fxe4
{[%clk 0:01:57.8]} 29... Rxc4 {[%clk 0:03:39.2]} 0-1

[Event "Live Chess"]
[Site "Chess.com"]
[Date "2023.05.20"]
[Round "-"]
[White "VicLemon"]
[Black "Duke_of_Bebington"]
[Result "1-0"]
[WhiteElo "1436"]
[BlackElo "1577"]
[TimeControl "300"]
[EndTime "15:44:12 PDT"]
[Termination "VicLemon won by resignation"]

1. d4 {[%clk 0:04:55.9]} 1... d5 {[%clk 0:04:58.4]} 2. Nf3 {[%clk 0:04:52.7]}
2... Nf6 {[%clk 0:04:56.5]} 3. c4 {[%clk 0:04:51.8]} 3... c6 {[%clk 0:04:55.2]}
4. g3 {[%clk 0:04:50.2]} 4... Bf5 {[%clk 0:04:52.1]} 5. Bg2 {[%clk 0:04:46.3]}
5... e6 {[%clk 0:04:50.2]} 6. b3 {[%clk 0:04:43.4]} 6... Nbd7 {[%clk 0:04:47.9]}
7. O-O {[%clk 0:04:42.1]} 7... Bd6 {[%clk 0:04:46.1]} 8. Bb2 {[%clk 0:04:38.8]}
8... O-O {[%clk 0:04:44.2]} 9. Nbd2 {[%clk 0:04:37.4]} 9... Ne4 {[%clk
0:04:40.8]} 10. Nh4 {[%clk 0:04:32.3]} 10... Nxd2 {[%clk 0:04:25.4]} 11. Qxd2
{[%clk 0:04:27.5]} 11... Bg6 {[%clk 0:04:21.7]} 12. Nxg6 {[%clk 0:04:24.9]}
12... hxg6 {[%clk 0:04:19.8]} 13. e4 {[%clk 0:04:23.8]} 13... Qe7 {[%clk
0:04:02.8]} 14. e5 {[%clk 0:04:18.7]} 14... Bc7 {[%clk 0:04:00.5]} 15. Rac1
{[%clk 0:03:59.9]} 15... Rac8 {[%clk 0:03:49.7]} 16. c5 {[%clk 0:03:11.2]} 16...
f6 {[%clk 0:03:43.5]} 17. f4 {[%clk 0:03:05.5]} 17... f5 {[%clk 0:03:38.9]} 18.
b4 {[%clk 0:02:59.3]} 18... Bd8 {[%clk 0:03:36.9]} 19. h4 {[%clk 0:02:53.7]}
19... b6 {[%clk 0:03:29.5]} 20. Kf2 {[%clk 0:02:50.7]} 20... Nb8 {[%clk
0:02:47.1]} 21. Rh1 {[%clk 0:02:45.6]} 21... Qf7 {[%clk 0:02:42]} 22. Bf1 {[%clk
0:02:37.8]} 22... bxc5 {[%clk 0:02:33.1]} 23. bxc5 {[%clk 0:02:35.7]} 23... Na6
{[%clk 0:02:19.7]} 24. Bxa6 {[%clk 0:02:32.4]} 24... Rb8 {[%clk 0:02:17.2]} 25.
Be2 {[%clk 0:02:26.6]} 25... Qb7 {[%clk 0:02:08.7]} 26. Bc3 {[%clk 0:02:11]}
26... Bc7 {[%clk 0:02:01]} 27. h5 {[%clk 0:02:09.7]} 27... Qa8 {[%clk
0:02:00.9]} 28. hxg6 {[%clk 0:02:06]} 1-0

[Event "Live Chess"]
[Site "Chess.com"]
[Date "2023.05.20"]
[Round "-"]
[White "jimwad"]
[Black "Conradical12"]
[Result "0-1"]
[WhiteElo "1223"]
[BlackElo "1617"]
[TimeControl "300"]
[EndTime "15:44:15 PDT"]
[Termination "Conradical12 won by resignation"]

1. d4 {[%clk 0:04:58.7]} 1... d5 {[%clk 0:04:58.3]} 2. c4 {[%clk 0:04:57.5]}
2... c6 {[%clk 0:04:36.9]} 3. Nc3 {[%clk 0:04:55.9]} 3... Nf6 {[%clk 0:04:26.7]}
4. e3 {[%clk 0:04:54]} 4... Bf5 {[%clk 0:04:24.5]} 5. Bd3 {[%clk 0:04:51.4]}
5... Bg6 {[%clk 0:04:22.6]} 6. Bxg6 {[%clk 0:04:49.9]} 6... hxg6 {[%clk
0:04:20.4]} 7. c5 {[%clk 0:04:48.7]} 7... Nbd7 {[%clk 0:04:17.6]} 8. h3 {[%clk
0:04:47.5]} 8... e5 {[%clk 0:04:16.1]} 9. dxe5 {[%clk 0:04:45.9]} 9... Nxe5
{[%clk 0:04:15.1]} 10. b4 {[%clk 0:04:39.8]} 10... a5 {[%clk 0:04:12]} 11. f4
{[%clk 0:04:35.4]} 11... Nc4 {[%clk 0:04:09.4]} 12. bxa5 {[%clk 0:04:27.9]}
12... Qxa5 {[%clk 0:04:07]} 13. Bd2 {[%clk 0:04:25]} 13... Bxc5 {[%clk
0:04:02.9]} 14. Nge2 {[%clk 0:04:20.4]} 14... Nxe3 {[%clk 0:04:00.3]} 15. Bxe3
{[%clk 0:04:16.1]} 15... Bxe3 {[%clk 0:03:59.1]} 16. Qd3 {[%clk 0:04:07.8]}
16... d4 {[%clk 0:03:57]} 0-1

[Event "Live Chess"]
[Site "Chess.com"]
[Date "2023.05.20"]
[Round "-"]
[White "Brooms1989"]
[Black "1600x"]
[Result "0-1"]
[WhiteElo "1079"]
[BlackElo "1782"]
[TimeControl "300"]
[EndTime "15:44:26 PDT"]
[Termination "1600x won by checkmate"]

1. e4 {[%clk 0:04:57.7]} 1... e5 {[%clk 0:04:59.9]} 2. Nc3 {[%clk 0:04:53.4]}
2... Nc6 {[%clk 0:04:57.7]} 3. f4 {[%clk 0:04:50.7]} 3... b5 {[%clk 0:04:55.1]}
4. fxe5 {[%clk 0:04:45.1]} 4... b4 {[%clk 0:04:51]} 5. Nd5 {[%clk 0:04:41.1]}
5... Qh4+ {[%clk 0:04:47.6]} 6. g3 {[%clk 0:04:30.1]} 6... Qxe4+ {[%clk
0:04:44.7]} 7. Kf2 {[%clk 0:04:29.8]} 7... Qxd5 {[%clk 0:04:37]} 8. Bg2 {[%clk
0:04:26.2]} 8... Bc5+ {[%clk 0:04:33.6]} 9. Kf1 {[%clk 0:04:18.7]} 9... Qd4
{[%clk 0:04:32.2]} 10. Qe2 {[%clk 0:04:11.2]} 10... Rb8 {[%clk 0:04:29]} 11. Nf3
{[%clk 0:04:05.6]} 11... Qg4 {[%clk 0:04:27.2]} 12. d3 {[%clk 0:03:46.8]} 12...
Nge7 {[%clk 0:04:20.6]} 13. Bf4 {[%clk 0:03:38.4]} 13... Nf5 {[%clk 0:04:18.5]}
14. h3 {[%clk 0:03:33.5]} 14... Nxg3+ {[%clk 0:04:15.6]} 15. Bxg3 {[%clk
0:03:31]} 15... Qxg3 {[%clk 0:04:13.4]} 16. Rh2 {[%clk 0:03:24.9]} 16... Nd4
{[%clk 0:04:11.4]} 17. Nxd4 {[%clk 0:03:10.3]} 17... Bxd4 {[%clk 0:03:52.1]} 18.
e6 {[%clk 0:03:00.2]} 18... fxe6 {[%clk 0:03:49.3]} 19. Re1 {[%clk 0:02:49.6]}
19... O-O+ {[%clk 0:03:43.9]} 20. Bf3 {[%clk 0:02:43.8]} 20... Qg1# {[%clk
0:03:39.1]} 0-1

[Event "Live Chess"]
[Site "Chess.com"]
[Date "2023.05.20"]
[Round "-"]
[White "Nazar_777"]
[Black "fretle"]
[Result "1-0"]
[WhiteElo "1643"]
[BlackElo "1814"]
[TimeControl "300"]
[EndTime "15:44:26 PDT"]
[Termination "Nazar_777 won by resignation"]

1. e3 {[%clk 0:04:56.6]} 1... h5 {[%clk 0:04:59.3]} 2. h4 {[%clk 0:04:51.3]}
2... d6 {[%clk 0:04:58.2]} 3. a3 {[%clk 0:04:50.7]} 3... a5 {[%clk 0:04:54.9]}
4. c4 {[%clk 0:04:50.1]} 4... g6 {[%clk 0:04:49.3]} 5. Nc3 {[%clk 0:04:48.6]}
5... Bg7 {[%clk 0:04:48.5]} 6. Nf3 {[%clk 0:04:47.7]} 6... Bg4 {[%clk
0:04:46.2]} 7. Be2 {[%clk 0:04:47.2]} 7... Nh6 {[%clk 0:04:44.8]} 8. Qc2 {[%clk
0:04:46.5]} 8... Nd7 {[%clk 0:04:41.2]} 9. b3 {[%clk 0:04:45.9]} 9... e6 {[%clk
0:04:24.4]} 10. Bb2 {[%clk 0:04:44.8]} 10... Nf5 {[%clk 0:04:22.7]} 11. Rc1
{[%clk 0:04:43.4]} 11... Bxf3 {[%clk 0:04:20.7]} 12. Bxf3 {[%clk 0:04:41.9]}
12... Nxh4 {[%clk 0:04:19.6]} 13. Bxb7 {[%clk 0:04:39.6]} 13... Rb8 {[%clk
0:04:18.6]} 14. Bc6 {[%clk 0:04:37.9]} 14... Qg5 {[%clk 0:03:53.4]} 15. Rg1
{[%clk 0:04:33.1]} 15... Rb6 {[%clk 0:03:41.9]} 16. Bxd7+ {[%clk 0:04:30.7]}
16... Kxd7 {[%clk 0:03:41.8]} 17. Ne4 {[%clk 0:04:29.7]} 17... Qg4 {[%clk
0:03:25]} 18. Bxg7 {[%clk 0:04:25]} 18... Nf3+ {[%clk 0:03:22.8]} 19. gxf3
{[%clk 0:04:17.7]} 19... Qxg1+ {[%clk 0:03:22.7]} 20. Ke2 {[%clk 0:04:16.7]} 1-0